bitfinex-derivatives/quotes_ETHF0:USTF0_20241229
["timestamp","ask_amount","ask_price","bid_price","bid_amount"]
[1735431080802,1.183,3403.1,3402.7,3.2078]
[1735431081102,0.2944,3403.0,3402.9,0.2944]
[1735431082701,1.183,3403.1,3403.0,0.2944]
[1735431083599,1.47739,3403.1,3403.0,0.2944]
[1735431083805,1.183,3403.1,3403.0,0.2944]
[1735431084203,1.47739,3403.1,3403.0,0.2944]
[1735431084609,1.183,3403.1,3403.0,0.2944]
[1735431084810,1.3093,3403.4,3403.3,0.29437]
[1735431085017,0.425,3403.4,3403.3,0.29437]
[1735431085315,3.2078,3403.9,3403.1,5.56511891]
[1735431085612,4.3908,3403.9,3403.8,0.29433]
[1735431086111,0.29431,3404.1,3403.6,5.56511891]
[1735431086410,1.183,3404.0,3403.9,0.29432]
[1735431090412,0.29431,3404.1,3403.7,0.29434]
[1735431090719,0.29431,3404.1,3404.0,0.29431]
[1735431090912,1.48431,3404.1,3404.0,0.29431]
[1735431091913,1.19,3404.1,3404.0,0.29431]
[1735431092116,1.4843,3404.1,3404.0,0.29431]
[1735431092321,1.19,3404.1,3404.0,0.29431]
[1735431092810,0.2943,3404.2,3403.7,0.29434]
[1735431093013,0.2943,3404.2,3404.1,0.2943]
[1735431093213,3.93628,3404.4,3404.3,0.29428]
[1735431093413,5.12628,3404.4,3404.3,0.29428]
[1735431094011,4.832,3404.4,3403.8,0.73583]
[1735431094312,0.2943,3404.2,3404.1,0.29429]
[1735431095416,0.29433,3403.9,3403.8,0.29432]
[1735431096109,3.2078,3403.9,3403.3,3.09324891]
[1735431096308,0.29435,3403.7,3403.6,0.29434]
[1735431096718,0.74335,3403.7,3403.6,0.29434]
[1735431097015,0.73587,3403.6,3402.7,6.98679241]
[1735431097317,3.5022,3403.0,3402.9,0.29439]
[1735431097517,3.2078,3403.0,3402.9,0.29439]
[1735431097918,4.1165,3403.0,3402.9,0.29439]
[1735431098313,3.6621,3403.0,3402.9,0.29439]
[1735431098916,3.2078,3403.0,3402.9,0.29439]
[1735431102315,1.19,3403.6,3402.9,3.2078]
[1735431102517,1.19,3403.6,3403.5,5.85946891]
[1735431103725,0.449,3403.7,3403.5,5.56511891]
[1735431104025,0.449,3403.7,3403.6,0.29435]
[1735431107324,0.4551,3404.1,3403.6,0.29435]
[1735431107523,1.19,3404.2,3404.1,0.2943]
[1735431108531,3.2078,3404.3,3404.1,0.2943]
[1735431108724,3.2078,3404.3,3404.0,2.35731891]
[1735431108725,5.05907498,3404.4,3404.3,0.29428]
[1735431108927,5.05907498,3404.4,3404.3,2.65159891]
[1735431110023,0.4348,3404.4,3404.3,0.29428]
[1735431113428,0.4348,3404.4,3404.3,2.65159891]
[1735431114126,5.09716295,3404.6,3404.5,0.29427]
[1735431114528,1.6345,3404.6,3404.5,0.29427]
[1735431116422,1.92876,3404.6,3404.5,0.29427]
[1735431116928,1.6345,3404.6,3404.5,0.29427]
[1735431118728,1.92876,3404.6,3404.5,0.29427]
[1735431120126,1.6345,3404.6,3403.8,3.2078]
[1735431120431,0.29431,3404.1,3404.0,0.2943]
[1735431120627,0.29432,3403.9,3403.8,3.50212]
[1735431121331,1.18482,3403.9,3403.8,3.50212]
[1735431121827,1.18482,3403.9,3403.5,0.29434]
[1735431121828,0.29435,3403.6,3403.5,0.29434]
[1735431122025,1.181,3403.6,3403.4,3.2078]
[1735431122220,0.29435,3403.5,3403.4,3.50216]
[1735431122421,0.29437,3403.4,3403.3,0.29436]
[1735431122824,0.29439,3403.2,3403.1,0.29438]
[1735431123827,3.2078,3403.5,3402.8,2.35731891]
[1735431124132,3.5022,3403.0,3402.9,0.2944]
[1735431125435,0.29442,3402.9,3402.8,0.29441]
[1735431125640,3.5022,3403.0,3402.9,0.29441]
[1735431126934,3.2078,3403.0,3402.5,2.94431891]
[1735431127139,3.2078,3403.0,3402.9,0.29441]
[1735431129030,3.2078,3403.0,3402.5,2.94431891]
[1735431129235,0.29441,3402.9,3402.8,0.29441]
[1735431130334,3.2078,3403.0,3402.5,2.35731891]
[1735431130534,3.2078,3403.0,3402.6,0.29442]
[1735431130535,0.29443,3402.7,3402.6,0.29442]
[1735431130736,1.47541,3402.9,3402.8,0.29441]
[1735431130937,1.181,3402.9,3402.8,0.29441]
[1735431132136,1.181,3402.9,3402.8,2.65172891]
[1735431138140,1.181,3402.9,3402.8,2.35731891]
[1735431138338,1.47541,3402.9,3402.8,2.35731891]
[1735431138537,1.181,3402.9,3402.7,0.29441]
[1735431138741,0.29441,3402.8,3402.7,0.29441]
[1735431139637,1.47541,3402.9,3402.7,0.29442]
[1735431139837,1.47541,3402.9,3402.5,2.35731891]
[1735431139838,1.47541,3402.9,3402.8,0.29441]
[1735431140138,1.47541,3402.9,3402.5,2.35731891]
[1735431140444,0.29444,3402.5,3402.3,0.29445]
[1735431140641,0.4497,3402.4,3402.3,0.29445]
[1735431142844,3.2078,3402.7,3402.6,0.29443]
[1735431143034,1.181,3402.8,3402.6,0.29443]
[1735431143239,1.181,3402.8,3402.7,0.29442]
[1735431148147,3.6731,3403.1,3402.5,2.35731891]
[1735431148448,3.6731,3403.1,3403.0,0.2944]
[1735431148449,4.8581,3403.1,3403.0,0.2944]
[1735431149947,4.8581,3403.1,3402.8,2.35731891]
[1735431149948,5.15249,3403.1,3402.9,0.2944]
[1735431150148,4.8581,3403.1,3403.0,0.2944]
[1735431152743,4.8581,3403.1,3402.5,0.73609]
[1735431152944,4.8581,3403.1,3402.8,0.29441]
[1735431153151,0.29441,3402.9,3402.8,0.29441]
[1735431154949,5.1525,3403.1,3402.9,0.2944]
[1735431156046,4.8581,3403.1,3402.9,0.2944]
[1735431156348,0.2944,3403.0,3402.9,0.2944]
[1735431156539,5.15249,3403.1,3403.0,0.2944]
[1735431156842,4.8581,3403.1,3403.0,0.2944]
[1735431157750,1.6503,3403.1,3403.0,0.2944]
[1735431158542,1.9447,3403.1,3402.5,3.09340891]
[1735431158845,1.9447,3403.1,3403.0,0.2944]
[1735431159150,1.6503,3403.1,3403.0,0.2944]
[1735431159646,1.94469,3403.1,3403.0,0.2944]
[1735431162348,5.11296295,3403.1,3402.2,3.2078]
[1735431162542,3.2078,3402.7,3402.1,0.456]
[1735431162747,0.29445,3402.4,3402.3,0.29446]
[1735431163755,0.29447,3402.2,3402.0,4.9239535]
[1735431163955,3.50226,3402.3,3402.1,0.29447]
[1735431164648,3.50226,3402.3,3402.2,0.29447]
[1735431164848,4.68726,3402.3,3402.2,0.29447]
[1735431166747,4.3928,3402.3,3402.2,2.65178891]
[1735431167358,5.76936798,3402.4,3402.2,2.35731891]
[1735431167656,5.76936798,3402.4,3402.3,0.29446]
[1735431168060,5.76936798,3402.4,3402.3,1.19316]
[1735431168461,4.61966193,3402.5,3402.4,0.29445]
[1735431168652,4.61966193,3402.5,3402.4,2.65176891]
[1735431169863,3.46572534,3402.8,3402.7,0.29442]
[1735431172173,6.22966193,3402.9,3402.8,0.29441]
[1735431173671,6.52407193,3402.9,3402.7,0.29442]
[1735431173866,6.52407193,3402.9,3402.7,0.29441]
[1735431174175,6.52407193,3402.9,3402.8,0.29441]
[1735431174662,6.22966193,3402.9,3402.8,0.29441]
[1735431175575,5.80466193,3402.9,3402.8,0.29441]
[1735431176870,1.185,3402.9,3402.8,0.29441]
[1735431177269,4.61966193,3403.0,3402.8,2.35731891]
[1735431177469,4.61966193,3403.0,3402.9,0.29441]
[1735431177668,4.61966193,3403.0,3402.9,0.75471]
[1735431178171,3.46570192,3403.0,3402.9,0.75471]
[1735431178978,3.46570192,3403.0,3402.6,4.6294735]
[1735431179274,3.76011192,3403.0,3402.8,0.29441]
[1735431179474,0.29441,3403.0,3402.8,0.29441]
[1735431180067,0.29441,3403.0,3402.9,0.29441]
[1735431180271,4.61966193,3403.1,3402.9,0.29441]
[1735431180475,1.185,3403.2,3402.8,0.29441]
[1735431180476,4.61966193,3403.0,3402.8,0.29441]
[1735431180778,0.29441,3402.9,3402.8,0.29441]
[1735431182574,4.91406193,3403.0,3402.8,0.29441]
[1735431183279,4.61966193,3403.0,3402.5,5.56511891]
[1735431183586,0.29443,3402.6,3402.5,3.2078]
[1735431183777,0.29443,3402.6,3402.5,3.50224]
[1735431184575,4.61966193,3402.7,3402.5,3.2078]
[1735431184772,0.9241,3402.6,3402.5,3.50224]
[1735431185176,1.21853,3402.6,3402.5,3.50224]
[1735431185782,0.9241,3402.6,3402.5,3.50224]
[1735431185981,5.54376193,3402.6,3402.5,3.50224]
[1735431187478,5.54376193,3402.6,3402.5,5.85955891]
[1735431187678,4.61966193,3402.6,3402.5,5.85955891]
[1735431188481,3.46408188,3402.6,3402.5,3.50224]
[1735431188682,3.75851188,3402.6,3402.5,3.2078]
[1735431189179,3.46408188,3402.6,3402.5,5.85955891]
[1735431189380,4.61966193,3402.6,3402.5,5.56511891]
[1735431189578,4.61966193,3402.6,3402.5,5.85955891]
[1735431190579,5.76936798,3402.8,3402.7,0.29442]
[1735431190580,4.61966193,3402.8,3402.7,0.29442]
[1735431191980,3.46434835,3402.9,3402.6,0.8558]
[1735431192185,3.46434835,3402.9,3402.8,0.29441]
[1735431192888,6.70876193,3403.1,3402.6,0.8558]
[1735431192889,4.61966193,3403.0,3402.9,0.29441]
[1735431195384,4.61966193,3403.0,3402.3,4.6294735]
[1735431195585,3.2078,3402.6,3402.3,4.6294735]
[1735431195784,0.4239,3402.5,3402.4,0.29445]
[1735431195985,0.71834,3402.5,3402.4,0.29445]
[1735431196586,0.4239,3402.5,3402.4,0.29445]
[1735431196988,5.33800193,3402.5,3402.4,0.29445]
[1735431197391,5.04356193,3402.5,3402.4,0.29445]
[1735431197580,5.33800193,3402.5,3402.4,0.29445]
[1735431198188,5.04356193,3402.5,3402.0,2.35731891]
[1735431198388,0.9083,3402.4,3402.3,0.29445]
[1735431199098,0.9083,3402.4,3401.8,4.6294735]
[1735431199292,0.29449,3401.9,3401.8,4.6294735]
[1735431201092,0.2945,3401.8,3401.6,0.29452]
[1735431201291,0.4266,3401.7,3401.6,0.29452]
[1735431202993,0.72111,3401.7,3401.5,3.50232]
[1735431203193,0.4266,3401.7,3401.5,3.50232]
[1735431203394,0.4266,3401.7,3401.6,0.29452]
[1735431205597,4.6147392,3401.8,3401.7,0.29451]
[1735431205897,4.6147392,3401.8,3401.7,2.65182891]
[1735431206200,3.4582524,3402.0,3401.9,0.29449]
[1735431207599,3.2078,3402.2,3401.8,0.4643]
[1735431207798,3.2078,3402.2,3402.0,0.29448]
[1735431208000,3.2078,3402.2,3401.8,0.4643]
[1735431208202,3.2078,3402.2,3402.1,0.29447]
[1735431212100,1.183,3402.4,3402.2,0.29446]
[1735431212397,1.47745,3402.4,3401.8,3.6721]
[1735431212904,1.47745,3402.4,3402.2,0.29446]
[1735431213107,1.183,3402.4,3401.8,3.6721]
[1735431213405,4.6412524,3402.4,3402.3,0.29446]
[1735431214804,0.29447,3402.2,3402.0,0.73698]
[1735431215205,0.74498,3402.1,3401.9,0.29449]
[1735431215395,0.9164,3402.0,3401.9,0.29449]
[1735431215600,1.21089,3402.0,3401.8,3.5023]
[1735431216001,1.21089,3402.0,3401.8,3.2078]
[1735431216002,0.29449,3401.9,3401.8,3.2078]
[1735431216299,0.9164,3402.0,3401.4,2.35731891]
[1735431216505,0.9164,3402.0,3401.7,0.2945]
[1735431216506,1.21089,3402.0,3401.7,0.2945]
[1735431217207,0.29449,3401.9,3401.7,0.2945]
[1735431217807,4.3746524,3402.0,3401.5,0.29453]
[1735431217808,0.29451,3401.8,3401.5,0.29453]
[1735431218104,3.2078,3401.7,3401.2,0.4328]
[1735431218310,1.184,3401.6,3400.9,4.6294735]
[1735431218603,0.29456,3401.2,3400.9,4.9240435]
[1735431218808,0.4402,3401.1,3400.9,4.9240435]
[1735431219009,0.4402,3401.1,3400.9,4.6294735]
[1735431219209,0.4402,3401.1,3400.9,4.9240435]
[1735431219509,0.4402,3401.1,3401.0,0.29457]
[1735431221206,0.73476,3401.1,3401.0,0.29457]
[1735431221403,0.4402,3401.1,3401.0,0.29457]
[1735431222202,0.4402,3401.1,3400.8,5.56511891]
[1735431222203,0.4402,3401.1,3400.8,3.2078]
[1735431222409,0.29458,3400.9,3400.8,3.2078]
[1735431222710,0.29457,3401.0,3400.8,3.50238]
[1735431222912,0.73476,3401.1,3401.0,0.29457]
[1735431223415,3.648,3401.1,3401.0,0.29457]
[1735431224111,0.29459,3400.9,3400.7,0.29459]
[1735431224310,1.184,3400.8,3400.7,0.29459]
[1735431229311,1.184,3400.8,3400.6,0.2946]
[1735431229610,1.184,3400.8,3400.5,2.35731891]
[1735431229812,1.184,3400.8,3400.7,0.2946]
[1735431236528,1.184,3400.8,3400.7,0.7256]
[1735431239223,0.4402,3401.1,3400.7,0.7256]
[1735431239427,0.4402,3401.1,3401.0,0.29457]
[1735431239428,1.6242,3401.1,3401.0,0.29457]
[1735431240826,1.6242,3401.1,3400.7,0.431]
[1735431241018,0.29458,3401.0,3400.8,0.29458]
[1735431241214,0.29459,3400.8,3400.7,0.72559]
[1735431241417,0.4628,3400.9,3400.8,0.29459]
[1735431241622,0.75738,3400.9,3400.8,0.29459]
[1735431241818,0.75738,3400.9,3400.7,0.72559]
[1735431242019,0.4628,3400.9,3400.7,0.431]
[1735431242225,0.4628,3400.9,3400.8,0.29459]
[1735431242417,0.4628,3400.9,3400.7,0.431]
[1735431242618,0.75738,3400.9,3400.7,0.72559]
[1735431243522,0.4628,3400.9,3400.7,0.431]
[1735431243727,0.4628,3400.9,3400.8,0.29459]
[1735431245136,0.4628,3400.9,3400.7,0.431]
[1735431245327,0.75738,3400.9,3400.7,0.72559]
[1735431245527,0.75738,3400.9,3400.7,0.431]
[1735431245727,0.75738,3400.9,3400.8,0.29459]
[1735431246333,0.4628,3400.9,3400.8,0.29459]
[1735431247234,0.4628,3400.9,3400.7,0.7256]
[1735431247641,3.4582524,3401.1,3401.0,0.29457]
[1735431247833,3.4582524,3401.1,3401.0,3.50237]
[1735431248132,1.4716524,3401.1,3401.0,3.50237]
[1735431248733,1.1780524,3401.1,3401.0,3.50237]
[1735431249725,3.2078,3401.7,3401.6,0.29452]
[1735431250832,3.2078,3401.7,3401.2,2.35731891]
[1735431251137,3.2078,3401.7,3401.0,0.29456]
[1735431251138,0.29455,3401.3,3401.0,0.29456]
[1735431251439,0.8868,3401.2,3401.1,0.29456]
[1735431251939,2.36435,3401.2,3401.0,0.29457]
[1735431252542,2.36435,3401.2,3400.6,3.2078]
[1735431252935,2.36435,3401.2,3401.0,0.29457]
[1735431253237,2.0698,3401.2,3401.0,0.29457]
[1735431253935,2.0698,3401.2,3400.6,3.2078]
[1735431254138,2.0698,3401.2,3401.1,0.29456]
[1735431257430,1.6151,3401.2,3401.1,0.29456]
[1735431258638,0.4321,3401.2,3401.1,0.29456]
[1735431259634,0.4638,3401.5,3401.0,5.56511891]
[1735431259834,0.4213,3401.5,3401.4,0.29454]
[1735431261239,0.4213,3401.5,3401.0,5.56511891]
[1735431261835,0.4213,3401.5,3401.4,0.29454]
[1735431262238,1.6043,3401.5,3401.4,0.29454]
[1735431262639,6.2190392,3401.5,3401.4,0.29454]
[1735431263741,1.6043,3401.5,3401.4,0.29454]
[1735431264743,6.5135692,3401.5,3401.3,0.29454]
[1735431265934,4.6147392,3401.4,3401.3,0.29454]
[1735431269943,5.7977392,3401.4,3401.3,0.29454]
[1735431272450,4.6147392,3401.4,3401.3,0.29454]
[1735431272845,0.4213,3401.5,3401.4,0.29454]
[1735431273060,4.6147392,3401.6,3401.5,0.29453]
[1735431273554,4.6147392,3401.6,3401.5,3.50233]
[1735431273958,0.4638,3401.8,3401.5,3.2078]
[1735431274166,0.4638,3401.8,3401.7,0.29451]
[1735431275063,0.4638,3401.8,3401.6,0.29452]
[1735431275249,3.2078,3401.7,3401.2,4.6294735]
[1735431275558,0.29452,3401.6,3401.4,0.29453]
[1735431276055,0.29453,3401.5,3401.3,0.29454]
[1735431276254,0.29454,3401.3,3401.1,0.29456]
[1735431276454,1.6039,3401.2,3401.1,0.29456]
[1735431276653,2.0552,3401.2,3401.1,0.29456]
[1735431279455,2.4922,3401.2,3401.1,0.29456]
[1735431287160,6.2470392,3401.2,3401.1,0.29456]
[1735431287368,4.6147392,3401.2,3401.1,2.65187891]
[1735431288361,0.4268,3401.5,3401.4,0.29454]
[1735431291267,1.6078,3401.5,3401.4,0.29454]
[1735431292071,1.90233,3401.5,3401.2,0.29455]
[1735431292471,1.90233,3401.5,3401.3,0.29454]
[1735431292972,7.37716798,3401.5,3400.9,3.2078]
[1735431293862,3.50235,3401.3,3401.1,0.29455]
[1735431294174,0.74136,3401.2,3401.0,0.29457]
[1735431294373,0.4289,3401.1,3401.0,0.29457]
[1735431294872,5.04801238,3401.1,3401.0,0.29457]
[1735431300074,0.4289,3401.1,3401.0,0.29457]
[1735431300681,0.4289,3401.1,3400.5,5.56511891]
[1735431300980,0.29459,3400.8,3400.7,0.29459]
[1735431301777,0.2946,3400.6,3400.5,3.50241]
[1735431301985,0.2946,3400.6,3400.5,3.2078]
[1735431303179,4.62290522,3400.6,3400.5,3.50241]
[1735431303382,7.83070522,3400.6,3400.5,0.29461]
[1735431303675,7.83070522,3400.6,3400.2,2.35731891]
[1735431303872,0.4439,3400.5,3399.9,12.47949931]
[1735431304180,0.29463,3400.3,3400.1,0.29464]
[1735431304379,0.29464,3400.2,3400.0,0.29465]
[1735431304573,0.4662,3400.4,3400.3,0.29463]
[1735431304773,0.4439,3400.5,3400.4,0.29462]
[1735431306474,4.62290522,3400.6,3400.5,0.29461]
[1735431306675,4.62290522,3400.6,3400.5,2.65192891]
[1735431307187,3.2078,3401.0,3400.9,0.29458]
[1735431307382,1.18,3401.3,3401.2,0.29455]
[1735431307588,4.3878,3401.6,3401.5,0.29453]
[1735431308180,0.4359,3401.8,3401.7,0.29451]
[1735431310482,5.0531328,3401.8,3401.7,0.29451]
[1735431313282,0.29453,3401.5,3401.3,0.29454]
[1735431313580,0.29453,3401.5,3401.0,3.2078]
[1735431313781,0.29453,3401.5,3401.4,0.29454]
[1735431313981,3.50233,3401.5,3401.4,0.29454]
[1735431314183,5.0531328,3401.8,3401.2,2.35731891]
[1735431314384,5.0531328,3401.8,3401.7,0.29451]
[1735431314583,0.4359,3401.8,3401.7,0.29451]
[1735431315879,5.341436,3401.8,3401.7,0.29451]
[1735431316076,5.341436,3401.8,3401.6,0.29451]
[1735431316681,4.611036,3401.7,3401.6,0.29451]
[1735431319089,4.611036,3401.7,3401.5,0.29452]
[1735431319285,0.8951,3401.6,3401.5,0.29452]
[1735431321591,1.18,3401.8,3401.3,2.35731891]
[1735431321796,1.18,3401.8,3401.7,0.29451]
[1735431324684,3.2078,3401.9,3401.8,0.2945]
[1735431324986,4.611036,3402.0,3401.9,0.29449]
[1735431325190,4.611036,3402.0,3401.9,2.65180891]
[1735431325992,1.18,3402.1,3402.0,0.29448]
[1735431327090,0.456,3402.3,3402.2,0.29447]
[1735431331900,0.456,3402.3,3402.2,2.65178891]
[1735431332199,0.456,3402.3,3402.2,0.29447]
[1735431335696,0.456,3402.3,3401.9,3.2078]
[1735431335896,3.2078,3402.2,3401.5,3.2078]
[1735431336091,0.4248,3402.1,3401.5,3.2078]
[1735431336286,0.4248,3402.1,3401.5,3.50233]
[1735431336287,0.29452,3401.6,3401.5,3.50233]
[1735431336593,1.47752,3401.6,3401.5,0.29453]
[1735431336792,1.183,3401.6,3401.5,0.29453]
[1735431338689,1.47752,3401.6,3401.4,0.29453]
[1735431338996,1.183,3401.6,3401.1,3.2078]
[1735431339196,1.183,3401.6,3401.5,0.29453]
[1735431340299,1.47752,3401.6,3401.3,0.29454]
[1735431340500,1.183,3401.6,3401.5,0.29453]
[1735431342596,1.183,3401.6,3401.2,0.4558]
[1735431342597,0.29454,3401.4,3401.2,0.29455]
[1735431342803,0.4479,3401.3,3401.2,0.29455]
[1735431343402,0.4479,3401.3,3400.7,2.78971891]
[1735431343605,3.2078,3400.9,3400.6,2.12179962]
[1735431343796,1.6357,3400.8,3400.7,0.29459]
[1735431345199,1.183,3400.8,3400.7,2.65190891]
[1735431345694,1.183,3400.8,3400.7,3.10860891]
[1735431346909,1.183,3400.8,3399.9,6.94285055]
[1735431347104,0.881,3400.7,3400.6,0.2946]
[1735431348501,0.4513,3400.7,3400.6,0.2946]
[1735431355002,1.183,3400.8,3400.4,2.35731891]
[1735431355003,1.183,3400.8,3400.7,0.2946]
[1735431355205,1.183,3400.8,3400.7,2.65191891]
[1735431356213,0.456,3401.2,3401.1,0.29456]
[1735431356412,1.639,3401.2,3401.1,0.29456]
[1735431357408,1.93355,3401.2,3401.1,0.29456]
[1735431359813,1.639,3401.2,3400.5,0.4256]
[1735431360113,3.2078,3400.8,3400.7,0.2946]
[1735431360306,0.29462,3400.5,3400.4,0.29462]
[1735431360608,3.2078,3400.8,3400.5,0.29461]
[1735431360609,0.29461,3400.6,3400.5,0.29461]
[1735431360810,1.47761,3400.6,3400.5,0.29461]
[1735431361607,1.47761,3400.6,3400.1,0.4631]
[1735431361802,1.183,3400.6,3400.1,0.4631]
[1735431362014,0.29461,3400.5,3400.3,0.29463]
[1735431362617,1.183,3400.6,3400.4,0.29462]
[1735431362803,1.183,3400.6,3400.5,2.65192891]
[1735431363112,4.611036,3401.0,3400.9,0.29458]
[1735431364115,2.512236,3401.0,3400.9,0.75808]
[1735431364614,1.177,3401.7,3401.6,0.29452]
[1735431367416,3.6371,3401.8,3401.7,0.29451]
[1735431368819,3.6371,3401.8,3401.1,2.35731891]
[1735431369015,3.2078,3401.2,3400.6,6.94285055]
[1735431369222,2.048,3401.1,3400.6,6.94285055]
[1735431369423,3.5024,3400.7,3400.5,6.94285055]
[1735431369720,3.2078,3400.7,3400.5,7.23746055]
[1735431369912,3.2078,3400.7,3400.5,6.94285055]
[1735431370120,3.2078,3400.7,3400.6,0.2946]
[1735431370322,3.5024,3400.7,3400.5,7.23746055]
[1735431370725,3.5024,3400.7,3400.5,0.29461]
[1735431371517,3.2078,3400.7,3400.5,0.29461]
[1735431371757,3.2078,3400.7,3400.6,0.2946]
[1735431372628,3.2078,3400.7,3400.5,0.29461]
[1735431372922,3.2078,3400.7,3400.6,0.2946]
[1735431375827,3.5024,3400.7,3400.3,0.29463]
[1735431376026,3.2078,3400.7,3400.5,0.29461]
[1735431376223,3.2078,3400.7,3400.6,0.2946]
[1735431378120,3.2078,3400.7,3400.2,2.35731891]
[1735431378322,3.2078,3400.7,3400.1,3.2078]
[1735431378516,0.29461,3400.6,3400.3,0.29463]
[1735431378726,0.29463,3400.4,3400.2,0.29464]
[1735431378928,0.4211,3400.3,3400.2,0.29464]
[1735431382837,0.46,3400.5,3400.4,0.29462]
[1735431383135,0.75462,3400.5,3400.3,0.29463]
[1735431383336,0.75462,3400.5,3400.2,0.29463]
[1735431383537,0.75462,3400.5,3400.3,0.29463]
[1735431384541,0.46,3400.5,3399.9,2.35731891]
[1735431384841,0.75461,3400.5,3400.3,0.29463]
[1735431386734,0.46,3400.5,3400.4,0.29462]
[1735431388138,1.637,3400.5,3400.4,0.29462]
[1735431388840,0.4286,3400.6,3400.5,0.29461]
[1735431390438,3.2078,3400.7,3400.6,0.2946]
[1735431390635,0.4521,3400.8,3400.7,0.2946]
[1735431390835,0.4505,3400.9,3400.5,5.56511891]
[1735431391042,0.4505,3400.9,3400.8,0.29459]
[1735431396448,3.6583,3400.9,3400.7,0.29459]
[1735431398348,0.5,3400.4,3399.5,6.83568953]
[1735431398550,12.81243782,3399.6,3399.1,8.0991611]
[1735431398843,3.2078,3399.2,3398.9,10.60153466]
[1735431399046,3.50253,3399.2,3398.9,10.60153466]
[1735431399257,3.2078,3399.2,3398.9,16.03822419]
[1735431399547,3.2078,3399.2,3398.9,16.33297419]
[1735431399748,3.2078,3399.2,3398.9,5.43668953]
[1735431399946,3.2078,3399.2,3398.9,5.73143953]
[1735431400346,3.2078,3399.2,3398.9,5.43668953]
[1735431400748,3.2078,3399.2,3399.0,0.29474]
[1735431400945,3.2078,3399.2,3399.1,0.29473]
[1735431402653,14.33228353,3399.2,3399.1,0.29473]
[1735431403649,8.895594,3399.2,3399.1,0.29473]
[1735431403857,3.15447438,3399.2,3399.1,0.29473]
[1735431405057,1.73447438,3399.2,3399.1,0.29473]
[1735431405261,2.29484126,3399.3,3399.2,0.29473]
[1735431405652,2.29484126,3399.3,3399.2,3.50253]
[1735431406657,3.44226189,3399.5,3399.4,0.29471]
[1735431406658,2.29484126,3399.5,3399.4,0.29471]
[1735431410757,2.29484126,3399.6,3399.2,3.2078]
[1735431410973,2.29484126,3399.6,3399.5,0.2947]
[1735431412257,3.44226189,3399.7,3399.6,0.29469]
[1735431415363,4.58968252,3399.8,3399.2,3.2078]
[1735431415558,4.58968252,3399.8,3399.7,0.29468]
[1735431416658,4.58968252,3399.8,3399.2,3.2078]
[1735431416861,4.58968252,3399.8,3399.7,0.29468]
[1735431419063,4.58968252,3399.8,3399.2,3.2078]
[1735431419261,0.4231,3399.7,3399.4,0.2947]
[1735431419566,0.4231,3399.7,3399.2,3.2078]
[1735431419769,0.4231,3399.7,3399.5,0.2947]
[1735431420369,0.4231,3399.7,3399.2,3.2078]
[1735431420563,0.2947,3399.5,3399.2,3.2078]
[1735431420765,0.74161,3399.4,3399.2,3.2078]
[1735431421062,0.4469,3399.4,3399.2,3.2078]
[1735431421266,0.4469,3399.4,3399.2,3.50252]
[1735431421466,2.29586925,3399.3,3399.2,3.50252]
[1735431421965,2.29586925,3399.3,3398.5,1.16427]
[1735431422371,2.29586925,3399.3,3398.6,0.29478]
[1735431422564,2.65206891,3399.0,3398.5,0.4273]
[1735431422768,2.65206891,3399.0,3398.5,0.29479]
[1735431422769,2.29586925,3398.8,3398.5,0.29479]
[1735431422972,2.35731891,3398.7,3398.0,3.2078]
[1735431423274,0.74248,3398.6,3398.3,0.2948]
[1735431423567,3.2078,3398.4,3397.9,1.327]
[1735431423764,5.56511891,3398.4,3397.5,3.94497]
[1735431423973,0.4475,3398.3,3398.0,0.29482]
[1735431424172,3.03816925,3398.3,3397.6,0.29486]
[1735431424473,2.74336925,3398.3,3398.0,0.29482]
[1735431424669,2.74336925,3398.3,3397.5,3.2078]
[1735431424870,2.74336925,3398.3,3398.0,0.29483]
[1735431425375,2.74336925,3398.3,3397.5,3.2078]
[1735431425574,3.2078,3398.0,3397.9,0.29483]
[1735431425867,3.2078,3398.0,3397.5,3.2078]
[1735431426072,3.2078,3398.0,3397.9,0.29484]
[1735431427568,5.49874581,3398.0,3397.9,0.29484]
[1735431428163,5.49874581,3398.0,3397.2,0.73725]
[1735431428374,5.49874581,3398.0,3397.9,0.29484]
[1735431428972,3.2078,3398.0,3397.9,0.29484]
[1735431430274,2.29094581,3398.1,3397.6,3.2078]
[1735431430469,2.29094581,3398.1,3398.0,0.29483]
[1735431431776,3.2078,3398.4,3398.3,0.2948]
[1735431431976,2.29094581,3398.5,3398.4,0.2948]
[1735431432980,2.73864581,3398.6,3398.0,4.5573]
[1735431433275,2.73864581,3398.6,3398.5,0.29479]
[1735431434382,0.4477,3398.6,3398.5,0.29479]
[1735431437772,0.4477,3398.6,3398.4,0.29479]
[1735431437985,0.4477,3398.6,3398.0,3.2078]
[1735431438180,0.4477,3398.6,3398.5,0.29479]
[1735431438483,0.29479,3398.5,3398.1,0.29481]
[1735431438687,3.2078,3398.4,3397.7,0.29486]
[1735431438887,3.2078,3398.4,3398.1,0.29481]
[1735431439283,0.29482,3398.2,3397.8,0.29484]
[1735431439587,0.29483,3398.0,3397.7,0.29485]
[1735431439886,0.4565,3397.9,3397.7,0.29485]
[1735431441788,2.74693439,3397.9,3397.7,0.29485]
[1735431442087,2.74693439,3397.9,3397.8,0.29485]
[1735431442989,3.90030388,3397.9,3397.8,0.29485]
[1735431443185,3.44380388,3397.9,3397.8,0.29485]
[1735431444590,3.44380388,3398.0,3397.5,0.499]
[1735431444793,3.44380388,3398.0,3397.9,0.29484]
[1735431445091,3.44380388,3398.0,3397.5,0.499]
[1735431445291,3.73863388,3398.0,3397.5,0.499]